bitfinex-derivatives/quotes_BNBF0:USTF0_20250529
["timestamp","ask_amount","ask_price","bid_price","bid_amount"]
[1748479320882,0.29006526,689.5,689.02,1.64194733]
[1748479321082,0.29006526,689.5,689.03,0.57272404]
[1748479321276,0.29006526,689.5,689.0,0.662]
[1748479321976,0.29006526,689.5,689.01,1.64170995]
[1748479322178,0.29006526,689.5,689.02,1.64170995]
[1748479322375,0.29006526,689.5,689.03,1.64170995]
[1748479322585,0.29006526,689.5,689.04,1.06907139]
[1748479322788,0.29006526,689.5,689.05,1.64094421]
[1748479322983,0.29006526,689.5,689.06,1.64094421]
[1748479323183,0.29006526,689.5,689.07,1.64092869]
[1748479323378,0.29006526,689.5,689.08,0.57265049]
[1748479323584,0.29006526,689.5,689.09,1.64092627]
[1748479323781,0.29006526,689.5,689.1,1.64092627]
[1748479323985,0.29006526,689.5,689.11,1.64092627]
[1748479324187,0.29006526,689.5,689.12,1.64092627]
[1748479324400,0.29006526,689.5,689.13,1.64092627]
[1748479324687,0.29006526,689.5,689.0,0.662]
[1748479324688,0.29006526,689.5,689.14,1.64138022]
[1748479324887,0.29006526,689.5,689.0,0.662]
[1748479324888,0.29006526,689.5,689.15,1.64138022]
[1748479325095,0.29006526,689.5,689.16,1.64138252]
[1748479325282,0.29006526,689.5,689.17,1.64138252]
[1748479325486,0.29006526,689.5,689.18,1.64138252]
[1748479325692,0.29006526,689.5,689.0,0.662]
[1748479325888,0.29006526,689.5,689.01,1.64127354]
[1748479326186,0.29006526,689.5,689.02,1.64127354]
[1748479326386,0.29006526,689.5,689.03,1.64127354]
[1748479326582,0.29006526,689.5,689.04,1.64127354]
[1748479326792,0.29006526,689.5,689.05,1.64117096]
[1748479326986,0.29006526,689.5,689.06,1.64117089]
[1748479327197,0.29006526,689.5,689.07,1.64125792]
[1748479327391,0.29006526,689.5,689.0,0.662]
[1748479327593,0.29006526,689.5,689.01,1.64287287]
[1748479327788,0.29006526,689.5,689.02,1.64287287]
[1748479328092,0.29006526,689.5,689.03,1.64288171]
[1748479328294,0.29006526,689.5,689.04,1.64288171]
[1748479328600,0.29006526,689.5,689.05,1.0697149]
[1748479328795,0.29006526,689.5,689.06,1.64288759]
[1748479328989,0.29006526,689.5,689.07,1.64288759]
[1748479329193,0.29006526,689.5,689.08,1.64286711]
[1748479329497,0.29006526,689.5,689.09,1.64296909]
[1748479329689,0.29006526,689.5,689.1,1.64296708]
[1748479329893,0.29006526,689.5,689.11,1.64296708]
[1748479330090,0.29006526,689.5,689.12,1.64296708]
[1748479330294,0.29006526,689.5,689.13,1.64293434]
[1748479330488,0.29006526,689.5,689.0,0.662]
[1748479330489,0.29006526,689.5,689.14,1.64293434]
[1748479330694,0.29006526,689.5,689.15,1.64288666]
[1748479330898,0.29006526,689.5,689.0,0.662]
[1748479331091,0.29006526,689.5,689.01,0.57311839]
[1748479331296,0.29006526,689.5,689.02,1.64267667]
[1748479331495,0.29006526,689.5,689.03,1.64267667]
[1748479331690,0.29006526,689.5,689.04,1.64267667]
[1748479331894,0.29006526,689.5,689.05,1.64267667]
[1748479332096,0.29006526,689.5,689.06,1.64267667]
[1748479332296,0.29006526,689.5,689.07,0.57325857]
[1748479332503,0.29006526,689.5,689.08,1.64308372]
[1748479332700,0.29006526,689.5,689.09,1.64308372]
[1748479332894,0.29006526,689.5,689.1,1.64308372]
[1748479333096,0.29006526,689.5,689.11,0.57326135]
[1748479333396,0.29006526,689.5,689.12,1.64342054]
[1748479333597,0.29006526,689.5,689.13,0.57337828]
[1748479333797,0.29006526,689.5,689.14,1.6434531]
[1748479333996,0.29006526,689.5,689.15,1.6434531]
[1748479334201,0.29006526,689.5,688.97,1.06884823]
[1748479334202,0.29006526,689.5,689.16,1.64345013]
[1748479334394,0.29006526,689.5,689.17,1.64345013]
[1748479334594,0.29006526,689.5,689.18,1.64345399]
[1748479334794,0.29006526,689.5,689.19,1.64344671]
[1748479335001,0.29006526,689.5,689.2,1.64344722]
[1748479335305,0.29006526,689.5,689.21,1.64344292]
[1748479335596,0.29006526,689.5,689.22,1.64344292]
[1748479335799,0.29006526,689.5,689.23,1.64347224]
[1748479336097,0.29006526,689.5,689.24,1.64347224]
[1748479336300,0.29006526,689.5,689.25,1.64347224]
[1748479336602,0.29006526,689.5,689.26,1.06999919]
[1748479336899,0.29006526,689.5,689.27,1.64341149]
[1748479337107,0.29006526,689.5,689.28,1.64341506]
[1748479337307,0.29006526,689.5,689.29,1.6434173]
[1748479337498,0.29006526,689.5,689.3,1.6434173]
[1748479337696,0.29006526,689.5,689.31,1.6434173]
[1748479337900,0.29006526,689.5,689.32,1.6434173]
[1748479338097,0.29006526,689.5,689.33,1.6434173]
[1748479338297,0.29006526,689.5,689.34,1.64342968]
[1748479338501,0.29006526,689.5,689.08,0.618]
[1748479338702,0.29006526,689.5,689.09,1.64345497]
[1748479339010,0.29006526,689.5,689.1,1.64345533]
[1748479339200,0.29006526,689.5,689.11,1.64345226]
[1748479339411,0.29006526,689.5,689.12,1.64344813]
[1748479339604,0.29006526,689.5,689.13,1.64344813]
[1748479339905,0.29006526,689.5,689.14,1.64345324]
[1748479340115,0.29006526,689.5,689.15,1.64351324]
[1748479340400,0.29006526,689.5,689.08,0.618]
[1748479340804,0.29006526,689.5,689.09,0.57347312]
[1748479341111,0.29006526,689.5,689.08,0.618]
[1748479341306,0.29006526,689.5,689.09,1.0700633]
[1748479341503,0.29006526,689.5,689.08,0.618]
[1748479342313,0.29006526,689.5,689.09,1.07003796]
[1748479342501,0.29006526,689.5,689.1,1.64351102]
[1748479342806,0.29006526,689.5,689.11,1.64351137]
[1748479343006,0.29006526,689.5,689.08,0.618]
[1748479344007,0.29006526,689.5,689.09,1.64342488]
[1748479344206,0.29006526,689.5,689.1,1.64342488]
[1748479344408,0.29006526,689.5,689.11,1.64342488]
[1748479344603,0.29006526,689.5,689.08,0.618]
[1748479344803,0.29006526,689.5,689.09,1.64341457]
[1748479345008,0.29006526,689.5,689.1,1.06995594]
[1748479345208,0.29006526,689.5,689.11,0.57346419]
[1748479345413,0.29006526,689.5,689.08,0.618]
[1748479345705,0.29006526,689.5,689.09,1.06996181]
[1748479345911,0.29006526,689.5,689.1,1.06995739]
[1748479346117,0.29006526,689.5,689.08,0.618]
[1748479346511,0.29006526,689.5,689.09,1.64341891]
[1748479346711,0.29006526,689.5,689.08,0.618]
[1748479346712,0.29006526,689.5,689.1,1.64341891]
[1748479347008,0.29006526,689.5,689.11,1.64342394]
[1748479347213,0.29006526,689.5,689.12,1.6434073]
[1748479347513,0.29006526,689.5,689.13,1.64340187]
[1748479347714,0.29006526,689.5,689.14,1.64340187]
[1748479347914,0.29006526,689.5,689.08,0.618]
[1748479347915,0.29006526,689.5,689.15,1.64340187]
[1748479348106,0.29006526,689.5,689.16,1.64340187]
[1748479348306,0.29006526,689.5,689.17,1.64340187]
[1748479348509,0.29006526,689.5,689.18,1.64340187]
[1748479348815,0.29006526,689.5,689.19,0.57346089]
[1748479349007,0.29006526,689.5,689.2,1.64410031]
[1748479349212,0.29006526,689.5,689.21,0.57341912]
[1748479349506,0.29006526,689.5,689.22,1.64411186]
[1748479349811,0.29006526,689.5,689.08,0.618]
[1748479349812,0.29006526,689.5,689.23,1.64411481]
[1748479350023,0.29006526,689.5,689.24,1.6440971]
[1748479350211,0.29006526,689.5,689.25,1.6440971]
[1748479350421,0.29006526,689.5,689.08,0.618]
[1748479350422,0.29006526,689.5,689.26,1.64408928]
[1748479350611,0.29006526,689.5,689.27,1.64407327]
[1748479350809,0.29006526,689.5,689.28,0.57340625]
[1748479351009,0.29006526,689.5,689.29,1.64406902]
[1748479351207,0.29006526,689.5,689.3,1.64406078]
[1748479351416,0.29006526,689.5,689.31,1.64404607]
[1748479351611,0.29006526,689.5,689.32,1.64404607]
[1748479351811,0.29006526,689.5,689.33,1.64404607]
[1748479352008,0.29006526,689.5,689.34,1.64404607]
[1748479352211,0.29006526,689.5,689.35,1.07064973]
[1748479352444,0.29006526,689.5,689.08,0.618]
[1748479352636,0.29006526,689.5,689.09,1.64405615]
[1748479352880,0.29006526,689.5,689.1,1.64405615]
[1748479353012,0.29006526,689.5,689.11,1.64408627]
[1748479353217,0.29006526,689.5,689.12,1.07065861]
[1748479353423,0.29006526,689.5,689.08,0.618]
[1748479353608,0.29006526,689.5,689.09,1.64413034]
[1748479353813,0.29006526,689.5,689.1,0.57344288]
[1748479354016,0.29006526,689.5,689.11,1.07067661]
[1748479354213,0.29006526,689.5,689.12,1.07067661]
[1748479354428,0.29006526,689.5,689.13,1.0706499]
[1748479354717,0.29006526,689.5,689.08,0.618]
[1748479355910,0.29006526,689.5,689.09,1.0723823]
[1748479356111,0.29006526,689.5,689.1,0.57346983]
[1748479356417,0.29006526,689.5,689.11,1.64589402]
[1748479356613,0.29006526,689.5,689.12,1.64589402]
[1748479356916,0.29006526,689.5,689.13,1.64589402]
[1748479357113,0.29006526,689.5,689.14,1.64589402]
[1748479357315,0.29006526,689.5,689.08,0.618]
[1748479357546,0.29006526,689.5,689.09,1.0730796]
[1748479357726,0.29006526,689.5,689.1,0.57352195]
[1748479358020,0.29006526,689.5,689.11,1.64683432]
[1748479358216,0.29006526,689.5,689.12,1.64683432]
[1748479358414,0.29006526,689.5,689.13,1.64657146]
[1748479358618,0.29006526,689.5,689.14,1.64657146]
[1748479358819,0.29006526,689.5,689.15,1.64657146]
[1748479359017,0.29006526,689.5,689.16,1.64657146]
[1748479359318,0.29006526,689.5,689.17,0.57351135]
[1748479359818,0.29006526,689.5,689.18,1.64695055]
[1748479360014,0.29006526,689.5,689.19,1.64695055]
[1748479360216,0.29006526,689.5,689.2,1.64695055]
[1748479360417,0.29006526,689.5,689.21,1.64695055]
[1748479360617,0.29006526,689.5,689.22,1.64658095]
[1748479360820,0.29006526,689.5,689.23,1.64658095]
[1748479361017,0.29006526,689.5,689.24,1.07323021]
[1748479361218,0.29006526,689.5,689.25,1.07317349]
[1748479361516,0.29006526,689.5,689.26,1.07317725]
[1748479361719,0.29006526,689.5,689.27,1.07317725]
[1748479361915,0.29006526,689.5,689.28,1.07317725]
[1748479362119,0.29006526,689.5,689.08,0.618]
[1748479362423,0.29006526,689.5,689.09,1.64637591]
[1748479362620,0.29006526,689.5,689.1,1.64637591]
[1748479362822,0.29006526,689.5,689.11,1.64637591]
[1748479363122,0.29006526,689.5,689.12,1.64635724]
[1748479363318,0.29006526,689.5,689.13,1.64643699]
[1748479363514,0.29006526,689.5,689.08,0.618]
[1748479363515,0.29006526,689.5,689.14,1.64640023]
[1748479363714,0.29006526,689.5,689.15,1.64633992]
[1748479363914,0.29006526,689.5,689.16,1.64633992]
[1748479364116,0.29006526,689.5,689.17,1.64633992]
[1748479364317,0.29006526,689.5,689.18,1.64633992]
[1748479364522,0.29006526,689.5,689.19,1.64633992]
[1748479364727,0.29006526,689.5,689.2,1.07289296]
[1748479364917,0.29006526,689.5,689.21,1.07289296]
[1748479365116,0.29006526,689.5,689.22,1.07289437]
[1748479365315,0.29006526,689.5,689.23,1.07289437]
[1748479365519,0.29006526,689.5,689.24,1.07289437]
[1748479365720,0.29006526,689.5,689.25,1.07289437]
[1748479365920,0.29006526,689.5,689.26,1.07289437]
[1748479366122,0.29006526,689.5,689.27,1.07289437]
[1748479366326,0.29006526,689.5,689.28,1.07289437]
[1748479366520,0.29006526,689.5,689.29,1.07289437]
[1748479366721,0.29006526,689.5,689.3,1.07289437]
[1748479366917,0.29006526,689.5,689.31,1.07269251]
[1748479367117,0.29006526,689.5,689.08,0.618]
[1748479367425,0.29006526,689.5,689.09,1.64569275]
[1748479367625,0.29006526,689.5,689.1,1.64569275]
[1748479367821,0.29006526,689.5,689.11,1.64569275]
[1748479368021,0.29006526,689.5,689.12,1.64569275]
[1748479368218,0.29006526,689.5,689.13,1.64569275]
[1748479368422,0.29006526,689.5,689.14,1.64569275]
[1748479368622,0.29006526,689.5,689.15,1.64616344]
[1748479368924,0.29006526,689.5,689.16,1.64617969]
[1748479369118,0.29006526,689.5,689.08,0.618]
[1748479369422,0.29006526,689.5,689.09,1.64617772]
[1748479369618,0.29006526,689.5,689.1,1.64617772]
[1748479369819,0.29006526,689.5,689.11,1.64605612]
[1748479370020,0.29006526,689.5,689.12,1.64605612]
[1748479370222,0.29006526,689.5,689.13,1.64605309]
[1748479370524,0.29006526,689.5,689.14,1.6460147]
[1748479370819,0.29006526,689.5,689.15,1.64600132]
[1748479371022,0.29006526,689.5,689.16,1.64597763]
[1748479371219,0.29006526,689.5,689.17,1.64597763]
[1748479371423,0.29006526,689.5,689.08,0.618]
[1748479371424,0.29006526,689.5,689.18,1.64597763]
[1748479371618,0.29006526,689.5,689.19,1.07315845]
[1748479371825,0.29006526,689.5,689.2,1.07315845]
[1748479372022,0.29006526,689.5,689.21,1.07315094]
[1748479372224,0.29006526,689.5,689.22,1.07294496]
[1748479372427,0.29006526,689.5,689.23,1.07294496]
[1748479372624,0.29006526,689.5,689.24,1.07294496]
[1748479372827,0.29006526,689.5,689.25,1.07294496]
[1748479373027,0.29006526,689.5,689.26,1.07294496]
[1748479373223,0.29006526,689.5,689.27,1.07294496]
[1748479373435,0.29006526,689.5,689.28,1.07291023]
[1748479373731,0.29006526,689.5,689.08,0.618]
[1748479373732,0.29006526,689.5,689.29,1.07291023]
[1748479373939,0.29006526,689.5,689.3,1.07293008]
[1748479374135,0.29006526,689.5,689.31,1.07292685]
[1748479374322,0.29006526,689.5,689.32,1.07292685]
[1748479374530,0.29006526,689.5,689.33,1.07292649]
[1748479374724,0.29006526,689.5,689.34,1.07293934]
[1748479374926,0.29006526,689.5,689.35,1.07293943]
[1748479375121,0.29006526,689.5,689.08,0.618]
[1748479375324,0.29006526,689.5,689.09,1.64579254]
[1748479375535,0.29006526,689.5,689.1,1.64579254]
[1748479375732,0.29006526,689.5,689.11,1.64579254]
[1748479376023,0.29006526,689.5,689.12,0.57284804]
[1748479376228,0.29006526,689.5,689.13,1.64590642]
[1748479376527,0.29006526,689.5,689.14,1.6459095]
[1748479376728,0.29006526,689.5,689.15,1.6459095]
[1748479376929,0.29006526,689.5,689.16,1.64590781]
[1748479377129,0.29006526,689.5,689.17,1.64590781]
[1748479377333,0.29006526,689.5,689.18,1.64590781]
[1748479377533,0.29006526,689.5,689.19,1.64590541]
[1748479377732,0.29006526,689.5,689.2,1.07303671]
[1748479377930,0.29006526,689.5,689.08,0.618]
[1748479378131,0.29006526,689.5,689.09,1.07303944]
[1748479378424,0.29006526,689.5,689.1,1.6458883]
[1748479378627,0.29006526,689.5,689.11,1.6458883]
[1748479378827,0.29006526,689.5,689.12,1.6458883]
[1748479379031,0.29006526,689.5,689.13,1.6458883]
[1748479379231,0.29006526,689.5,689.14,1.64587821]
[1748479379534,0.29006526,689.5,689.15,1.64584079]
[1748479379732,0.29006526,689.5,689.16,1.64584079]
[1748479379937,0.29006526,689.5,689.17,1.64583814]
[1748479380132,0.29006526,689.5,689.18,1.07299123]
[1748479380328,0.29006526,689.5,689.19,1.64591745]
[1748479380530,0.29006526,689.5,689.2,1.07304489]
[1748479380738,0.29006526,689.5,689.21,1.07304489]
[1748479380933,0.29006526,689.5,689.22,1.07304489]
[1748479381132,0.29006526,689.5,689.23,1.07356013]
[1748479381333,0.29006526,689.5,689.24,1.07356013]
[1748479381638,0.29006526,689.5,689.25,1.07356013]
[1748479381935,0.29006526,689.5,689.26,1.07364056]
[1748479382232,0.29006526,689.5,689.27,1.07361256]
[1748479382537,0.29006526,689.5,689.28,1.07365607]
[1748479382734,0.29006526,689.5,689.29,1.07365607]
[1748479382933,0.29006526,689.5,689.3,1.07365607]
[1748479383137,0.29006526,689.5,689.31,1.07365607]
[1748479383338,0.29006526,689.5,689.32,1.07365607]
[1748479383535,0.29006526,689.5,689.33,1.07309083]
[1748479383737,0.29006526,689.5,689.34,1.07309083]
[1748479383937,0.29006526,689.5,689.35,1.07309083]
[1748479384134,0.29006526,689.5,689.08,0.618]
[1748479384341,0.29006526,689.5,689.09,1.64603641]
[1748479384540,0.29006526,689.5,689.1,1.64549661]
[1748479384741,0.29006526,689.5,689.11,1.64549661]
[1748479384938,0.29006526,689.5,689.12,1.64549661]
[1748479385143,0.29006526,689.5,689.13,1.64549661]
[1748479385339,0.29006526,689.5,689.14,1.64549661]
[1748479385540,0.29006526,689.5,689.15,0.57295576]
[1748479385836,0.29006526,689.5,689.08,0.618]
[1748479386042,0.29006526,689.5,689.09,0.57295562]
[1748479386244,0.29006526,689.5,689.1,1.64539603]
[1748479386440,0.29006526,689.5,689.11,1.64539603]
[1748479386641,0.29006526,689.5,689.12,1.64539603]
[1748479386838,0.29006526,689.5,689.08,0.618]
[1748479387641,0.29006526,689.5,689.09,1.6454476]
[1748479387840,0.29006526,689.5,689.1,1.6454476]
[1748479388039,0.29006526,689.5,689.11,1.6454476]
[1748479388238,0.29006526,689.5,689.12,1.6454476]
[1748479388540,0.29006526,689.5,689.13,1.64545432]
[1748479388745,0.29006526,689.5,689.14,1.64547195]
[1748479388948,0.29006526,689.5,689.15,1.64546219]
[1748479389251,0.29006526,689.5,689.16,1.64546219]
[1748479389542,0.29006526,689.5,689.17,1.64546219]
[1748479389846,0.29006526,689.5,689.18,1.64546219]
[1748479390140,0.29006526,689.5,689.19,1.64384404]
[1748479390452,0.29006526,689.5,689.2,1.6438358]
[1748479390650,0.29006526,689.5,689.21,1.64370273]
[1748479390948,0.29006526,689.5,689.08,0.618]
[1748479392352,0.29006526,689.5,689.09,1.07046374]
[1748479392555,0.29006526,689.5,689.1,1.64172914]
[1748479392747,0.29006526,689.5,689.11,1.6417215]
[1748479392950,0.29006526,689.5,689.08,0.618]
[1748479392951,0.29006526,689.5,689.12,1.64169947]
[1748479393152,0.29006526,689.5,689.13,1.64169947]
[1748479393351,0.29006526,689.5,689.14,1.64130774]
[1748479393554,0.29006526,689.5,689.15,1.64131306]
[1748479393753,0.29006526,689.5,689.16,1.64131101]
[1748479393959,0.29006526,689.5,689.17,1.64131052]
[1748479394165,0.29006526,689.5,689.18,1.64131052]
[1748479394350,0.29006526,689.5,689.19,1.64131052]
[1748479394555,0.29006526,689.5,689.2,1.64076227]
[1748479394760,0.29006526,689.5,689.21,1.64076287]
[1748479394949,0.29006526,689.5,689.22,1.06885598]
[1748479395155,0.29006526,689.5,689.23,1.06879368]
[1748479395350,0.29006526,689.5,689.24,1.64040971]
[1748479395559,0.29006526,689.5,689.25,1.64040971]
[1748479395863,0.29006526,689.5,689.26,1.63971385]
[1748479396051,0.29006526,689.5,689.27,1.63971385]
[1748479396263,0.29006526,689.5,689.28,1.63970443]
[1748479396454,0.29006526,689.5,689.29,0.57135434]
[1748479396660,0.29006526,689.5,689.3,1.06882029]
[1748479396959,0.29006526,689.5,689.08,0.618]
[1748479397456,0.29006526,689.5,689.09,1.06877133]
[1748479397655,0.29006526,689.5,689.08,0.618]
[1748479398463,0.29006526,689.5,689.09,1.64087957]
[1748479398655,0.29006526,689.5,689.1,0.57157227]
[1748479398959,0.29006526,689.5,689.11,1.06930484]
[1748479399159,0.29006526,689.5,689.12,0.57160196]
[1748479399354,0.29006526,689.5,689.13,1.06931461]
[1748479399568,0.29006526,689.5,689.08,0.618]
[1748479400357,0.29006526,689.5,689.09,1.6408798]
[1748479400564,0.29006526,689.5,689.1,0.57159207]
[1748479400859,0.29006526,689.5,689.11,1.64102561]
[1748479401066,0.29006526,689.5,689.12,1.64100814]
[1748479401358,0.29006526,689.5,689.13,1.06942304]
[1748479401561,0.29006526,689.5,689.14,1.64101006]
[1748479401863,0.29006526,689.5,689.15,1.64101279]
[1748479402059,0.29006526,689.5,689.16,1.64101279]
[1748479402260,0.29006526,689.5,689.17,1.64101279]
[1748479402459,0.29006526,689.5,689.18,1.64101279]
[1748479402665,0.29006526,689.5,689.19,1.64101279]
[1748479402963,0.29006526,689.5,689.2,1.64124424]
[1748479403163,0.29006526,689.5,689.08,0.618]
[1748479403365,0.29006526,689.5,689.09,1.64126941]
[1748479403561,0.29006526,689.5,689.1,1.06958741]
[1748479403757,0.29006526,689.5,689.08,0.618]
[1748479404869,0.29006526,689.5,689.09,1.06983774]
[1748479405167,0.29006526,689.5,689.08,0.618]
[1748479405663,0.29006526,689.5,689.09,0.57159691]
[1748479405862,0.29006526,689.5,689.08,0.618]
[1748479406264,0.29006526,689.5,689.09,1.64126311]
[1748479406467,0.29006526,689.5,689.08,0.618]
[1748479407267,0.29006526,689.5,689.09,0.57148476]
[1748479407460,0.29006526,689.5,689.08,0.618]
[1748479407866,0.29006526,689.5,689.09,0.57145718]
[1748479408066,0.29006526,689.5,689.08,0.618]
[1748479408265,0.29006526,689.5,689.09,1.64095243]
[1748479408569,0.29006526,689.5,689.08,0.618]
[1748479408766,0.29006526,689.5,689.09,1.06944079]
[1748479408961,0.29006526,689.5,689.08,0.618]
[1748479409667,0.29006526,689.5,689.09,1.64086013]
[1748479409867,0.29006526,689.5,689.08,0.618]
[1748479410669,0.29006526,689.5,689.09,1.64055036]
[1748479410867,0.29006526,689.5,689.08,0.618]
[1748479411073,0.29006526,689.5,689.09,0.57130998]
[1748479411271,0.29006526,689.5,689.08,0.618]
[1748479411976,0.29006526,689.5,689.09,2.13825373]
[1748479412170,0.29006526,689.5,689.09,1.06914261]
[1748479412968,0.29006526,689.5,689.1,0.57124667]
[1748479413173,0.29006526,689.5,689.11,0.57124921]
[1748479413367,0.29006526,689.5,689.09,1.06914261]
[1748479413567,0.29006526,689.5,689.1,0.57124934]
[1748479413767,0.29006526,689.5,689.09,1.06914261]
[1748479413768,0.29006526,689.5,689.11,0.57126392]
[1748479413973,0.29006526,689.5,689.12,1.06907835]
[1748479414166,0.29006526,689.5,689.09,1.06914261]
[1748479415068,0.29006526,689.5,689.1,1.06906222]
[1748479415273,0.29006526,689.5,689.11,0.57124885]
[1748479415467,0.29006526,689.5,689.09,1.06914261]
[1748479416377,0.29006526,689.5,689.1,1.06893691]
[1748479416573,0.29006526,689.5,689.11,0.57127951]
[1748479416775,0.29006526,689.5,689.09,1.06914261]
[1748479416971,0.29006526,689.5,689.1,1.64010978]
[1748479417174,0.29006526,689.5,689.11,1.64010379]
[1748479417374,0.29006526,689.5,689.12,1.64010379]
[1748479417677,0.29006526,689.5,689.13,1.64010379]
[1748479417873,0.29006526,689.5,689.09,1.06914261]
[1748479418073,0.29006526,689.5,689.1,1.6397786]
[1748479418271,0.29006526,689.5,689.11,1.63968005]
[1748479418472,0.29006526,689.5,689.12,1.63968005]
[1748479418674,0.29006526,689.5,689.13,1.63961125]
[1748479418870,0.29006526,689.5,689.14,1.63961125]
[1748479419174,0.29006526,689.5,689.15,1.63961131]
[1748479419375,0.29006526,689.5,689.16,1.63948466]
[1748479419674,0.29006526,689.5,689.17,1.63934364]
[1748479419873,0.29006526,689.5,689.18,1.63934364]
[1748479420085,0.29006526,689.5,689.19,1.63934364]
[1748479420274,0.29006526,689.5,689.2,1.63931149]
[1748479420576,0.29006526,689.5,689.09,1.06914261]
[1748479420776,0.29006526,689.5,689.1,1.63925793]
[1748479420970,0.29006526,689.5,689.11,1.63925793]
[1748479421171,0.29006526,689.5,689.09,1.06914261]
[1748479421172,0.29006526,689.5,689.12,1.63925793]
[1748479421373,0.29006526,689.5,689.09,1.06914261]
[1748479421374,0.29006526,689.5,689.13,1.63925793]
[1748479421573,0.29006526,689.5,689.14,1.63925793]
[1748479421789,0.29006526,689.5,689.15,1.63925793]
[1748479422075,0.29006526,689.5,689.16,1.63907212]
[1748479422273,0.29006526,689.5,689.17,1.63910226]
[1748479422479,0.29006526,689.5,689.18,1.63908281]
[1748479422682,0.29006526,689.5,689.19,1.63908281]
[1748479422976,0.29006526,689.5,689.09,1.06914261]
[1748479422977,0.29006526,689.5,689.2,1.63908281]
[1748479423176,0.29006526,689.5,689.21,1.63908281]
[1748479423477,0.29006526,689.5,689.22,1.63908281]
[1748479423695,0.29006526,689.5,689.23,1.63926155]
[1748479423876,0.29006526,689.5,689.24,0.57089313]
[1748479424076,0.29006526,689.5,689.25,1.63924866]
[1748479424272,0.29006526,689.5,689.26,1.63924866]
[1748479424480,0.29006526,689.5,689.27,1.63918559]
[1748479424674,0.29006526,689.5,689.09,1.06914261]
[1748479424873,0.29006526,689.5,689.1,1.63921367]
[1748479425072,0.29006526,689.5,689.11,1.63921367]
[1748479425272,0.29006526,689.5,689.12,0.57085732]
[1748479425476,0.29006526,689.5,689.09,1.06914261]
[1748479425876,0.29006526,689.5,689.1,1.63949011]
[1748479426073,0.29006526,689.5,689.11,1.63949011]
[1748479426278,0.29006526,689.5,689.12,1.6394834]
[1748479426577,0.29006526,689.5,689.13,1.6394834]
[1748479426773,0.29006526,689.5,689.14,1.6394834]
[1748479426978,0.29006526,689.5,689.15,1.6394834]
[1748479427234,0.29006526,689.5,689.16,1.63947693]
[1748479427380,0.29006526,689.5,689.17,1.6395889]
[1748479427676,0.29006526,689.5,689.18,1.63963041]
[1748479427878,0.29006526,689.5,689.19,1.63949057]
[1748479428082,0.29006526,689.5,689.2,1.63949057]
[1748479428380,0.29006526,689.5,689.21,1.63949057]
[1748479428576,0.29006526,689.5,689.09,1.06914261]
[1748479428577,0.29006526,689.5,689.22,1.63949057]
[1748479428881,0.29006526,689.5,689.23,1.63955339]
[1748479429081,0.29006526,689.5,689.24,1.06971359]
[1748479429276,0.29006526,689.5,689.25,1.06972405]
[1748479429480,0.29006526,689.5,689.26,1.06975868]
[1748479429776,0.29006526,689.5,689.09,1.06914261]
[1748479429980,0.29006526,689.5,689.1,1.64065588]
[1748479430179,0.29006526,689.5,689.11,1.64065588]
[1748479430380,0.29006526,689.5,689.12,1.64065588]
[1748479430577,0.29006526,689.5,689.13,1.64065588]
[1748479430784,0.29006526,689.5,689.14,1.64065588]
[1748479430982,0.29006526,689.5,689.15,1.64076354]
[1748479431183,0.29006526,689.5,689.09,1.06914261]
[1748479432484,0.29006526,689.5,689.1,1.64097757]
[1748479432684,0.29006526,689.5,689.11,1.64112495]
[1748479432881,0.29006526,689.5,689.09,1.06914261]
[1748479433093,0.29006526,689.5,689.1,0.57112169]
[1748479433380,0.29006526,689.5,689.09,1.06914261]
[1748479433583,0.29006526,689.5,689.1,0.57112403]
[1748479433781,0.29006526,689.5,689.11,1.6411549]
[1748479433983,0.29006526,689.5,689.12,1.6411549]
[1748479434179,0.29006526,689.5,689.13,1.64128033]
[1748479434384,0.29006526,689.5,689.14,1.64128033]
[1748479434585,0.29006526,689.5,689.15,1.64128033]
[1748479434785,0.29006526,689.5,689.16,1.64129854]
[1748479435081,0.29006526,689.5,689.17,0.57118638]
[1748479435283,0.29006526,689.5,689.18,1.64134085]
[1748479435480,0.29006526,689.5,689.19,1.64137269]
[1748479435686,0.29006526,689.5,689.2,1.64148745]
[1748479435884,0.29006526,689.5,689.21,1.07025424]
[1748479436084,0.29006526,689.5,689.22,1.07025517]
[1748479436285,0.29006526,689.5,689.23,1.07025517]
[1748479436580,0.29006526,689.5,689.24,1.07025517]
[1748479436781,0.29006526,689.5,689.25,1.07038735]
[1748479436981,0.29006526,689.5,689.26,1.07038735]
[1748479437185,0.29006526,689.5,689.27,1.07038735]
[1748479437386,0.29006526,689.5,689.09,1.06914261]
[1748479437591,0.29006526,689.5,689.1,1.64185748]
[1748479437791,0.29006526,689.5,689.11,1.64185748]
[1748479437981,0.29006526,689.5,689.12,1.64185055]
[1748479438182,0.29006526,689.5,689.13,1.64183785]
[1748479438385,0.29006526,689.5,689.14,1.64183698]
[1748479438584,0.29006526,689.5,689.15,1.64183698]
[1748479438786,0.29006526,689.5,689.16,1.6418744]
[1748479438987,0.29006526,689.5,689.17,1.6418744]